Cogmind - Beta 14 @@@ ROGUE MODE // 2024.11.22 @ 16:15:06 Player: akira Result: Destroyed by G-34 Mercenary with Small Laser Performance ------------- Evolutions (0) 0 Regions Visited (1) 200 Robots Destroyed (16) 80 Value Destroyed (446) 446 Prototype IDs (0) 0 Alien Tech Used (0) 0 Bonus (0) 0 TOTAL SCORE: 726 Bonus ------- None Cogmind --------- Core Integrity 0/250 Matter 259/300 Energy 250/250 System Corruption 5% Temperature Warm (155) Movement Treading (240) Ox1 Location -10/Materials Parts ------- > --- POWER (1) -------- Ion Engine > --- PROPULSION (2) --- Light Treads > --- UTILITY (2) ------ Large Storage Unit Signal Interpreter > --- WEAPON (2) ------- Small Laser Small Laser > --- INVENTORY (15) --- Small Storage Unit Sensor Array Hacking Suite Light Assault Rifle Peak State ------------ > --- POWER ------------ Ion Engine > --- PROPULSION ------- Light Treads Light Treads > --- UTILITY ---------- Large Storage Unit Sensor Array > --- WEAPON ----------- EM Pulse Gun Heavy Assault Rifle > --- INVENTORY -------- Ion Engine Aluminum Leg Aluminum Leg Small Storage Unit Signal Interpreter Hacking Suite Small Laser Small Laser Light Cannon [Rating: 9] Favorites ----------- Power Ion Engine Engine Ion Engine Propulsion Light Treads Treads Light Treads Leg Aluminum Leg Utility Large Storage Unit Device Sensor Array Storage Large Storage Unit Processor Signal Interpreter Weapon EM Pulse Gun Energy Gun EM Pulse Gun Ballistic Gun Heavy Assault Rifle Ballistic Cannon Light Cannon Build | -11 -10 ------- Run | Yrd Mat Slots Evolved . | . . Power . | . . Propulsion . | . . Utility . | . . Weapon . | . . Parts Attached 19 | 6 13 Power 2 | 1 1 Engine 2 | 1 1 Core . | . . Reactor . | . . Propulsion 5 | 2 3 Treads 3 | 2 1 Leg 2 | . 2 Wheel . | . . Hover . | . . Flight . | . . Utility 4 | 1 3 Device 1 | . 1 Storage 2 | 1 1 Processor 1 | . 1 Hackware . | . . Protection . | . . Artifact . | . . Weapon 8 | 2 6 Energy Gun 4 | 2 2 Energy Cannon . | . . Ballistic Gun 2 | . 2 Ballistic Cannon 2 | . 2 Launcher . | . . Special Weapon . | . . Impact Weapon . | . . Slashing Weapon . | . . Piercing Weapon . | . . Special Melee Weapon . | . . Unidentified Prototypes . | . . Corrupted Parts 1 | . 1 System Corruption 5 | . 5 Parts Lost 6 | . 6 Power 1 | . 1 Propulsion 3 | . 3 Utility . | . . Weapon 2 | . 2 Highest Loss Streak 4 | . 4 To Critical Strikes . | . . Average Slot Usage (%) 81 | . 81 Engine 13 | . 13 Treads 17 | . 17 Leg 9 | . 9 Device 5 | . 5 Storage 14 | . 14 Processor 4 | . 4 Energy Gun 7 | . 7 Ballistic Gun 3 | . 3 Ballistic Cannon 3 | . 3 Peak Build Rating 9 | 6 9 Average Rating 6 | 3 6 On Entrance 2 | . 5 Naked Turns . | . . Heaviest Build 29 | 13 29 Greatest Support 40 | 40 40 Greatest Overweight (x) 2 | . 2 Average Overweight (x) . | . . Largest Inventory Capacity 15 | 8 15 Average Capacity 12 | 7 13 Most Carried 9 | 5 9 Average Carried 6 | 2 6 Final Capacity 15 | 8 15 Final Carried 5 | 5 4 Class Distribution -------------------- 100% | Mutant Dominant Class ---------------- Mutant | -10/Materials Resources | -11 -10 ----------- Run | Yrd Mat Matter Collected 480 | 260 220 Remotely . | . . Salvage Created 459 | . 459 Parts 33 | . 33 Haulers Intercepted . | . . Recyclers Shooed . | . . Parts Field Recycled . | . . Retrieved Matter . | . . Parts Self-Destructed . | . . Prevented . | . . Kills | -11 -10 ------- Run | Yrd Mat Combat Hostiles Destroyed 12 | . 12 Guns 5 | . 5 Cannons 6 | . 6 AOE 1 | . 1 Classes Destroyed 4 | . 4 Operator 2 | . 2 Watcher 2 | . 2 Swarmer 3 | . 3 Grunt 9 | . 9 Best Kill Streak 3 | . 3 Combat Bots Only 3 | . 3 Max Kills in Single Turn 1 | . 1 Gunslinging . | . . Exploded 1 | . 1 Melee . | . . Uniques/NPCs Destroyed . | . . Combat | -11 -10 -------- Run | Yrd Mat Hostile Shots Fired 127 | . 127 Missed 30 | . 30 Damage Taken 1183 | . 1183 Core 250 | . 250 Absorbed by Shields . | . . Core Remaining (%) 100 | 100 . Volleys Fired 82 | . 82 Largest 2 | . 2 Hottest 80 | . 80 Shots Fired 90 | . 90 Gun 75 | . 75 Cannon 15 | . 15 Launcher . | . . Special . | . . Kinetic 54 | . 54 Thermal 14 | . 14 Explosive . | . . Electromagnetic 22 | . 22 Robot Hit Streak 9 | . 9 Robot Miss Streak 4 | . 4 Penetration Max . | . . Secondary Targets . | . . Shots Hit Robots 67 | . 67 Core Hits 24 | . 24 Critical Kills . | . . Critical Parts Destroyed . | . . Critical Strikes 1 | . 1 Corrupt 1 | . 1 Melee Attacks . | . . Impact . | . . Slashing . | . . Piercing . | . . Sneak Attacks . | . . Combat Hostiles . | . . Follow-up Attacks . | . . Damage Inflicted 942 | . 942 Guns 711 | . 711 Cannons 190 | . 190 Explosions 41 | . 41 Melee . | . . Ramming . | . . Kinetic 550 | . 550 Thermal 187 | . 187 Explosive . | . . Electromagnetic 205 | . 205 Impact . | . . Slashing . | . . Piercing . | . . Highest Corruption 5 | . 5 Average Corruption 5 | . 5 Corruption Purged . | . . Corruption Blocked . | . . Effects 10 | . 10 Matter Fused 2 | . 2 Heat Flow Errors 3 | . 3 Energy Discharges 1 | . 1 Data Loss (minor) 3 | . 3 Misfires 1 | . 1 Overload Shots . | . . Overflow Damage 3 | . 3 Projectiles 3 | . 3 Explosions . | . . Melee . | . . Knockbacks 2 | . 2 Impact . | . . Kinetic 2 | . 2 Secondary . | . . Self-Inflicted Damage 33 | . 33 Shots 1 | . 1 Rammed . | . . Targets Rammed . | . . Kicked . | . . Crushed . | . . Highest Temperature 265 | . 265 Average Temperature 82 | . 82 Received Heat Transfer 579 | . 579 Siege Activations . | . . Robots Corrupted . | . . Combat Hostiles . | . . Parts Fried 2 | . 2 Impact Corruptions . | . . Robots Melted . | . . Combat Hostiles . | . . Parts Melted 1 | . 1 Heat Transferred 325 | . 325 Parts Sabotaged . | . . Parts Stolen . | . . Parts Stripped . | . . Power Chain Reactions 1 | . 1 Alert | -11 -10 ------- Run | Yrd Mat Peak Influence 163 | . 163 Initial . | . . Average 52 | . 56 Maximum Alert Level . | . . Low Security (%) 100 | 100 100 Level 1 . | . . Level 2 . | . . Level 3 . | . . Level 4 . | . . Level 5 . | . . High Security . | . . Max Security . | . . Squads Dispatched 3 | . 3 Investigation 1 | . 1 Extermination . | . . Reinforcement 2 | . 2 Assault . | . . Garrison . | . . Intercept . | . . Searches Triggered . | . . Construction Impeded . | . . Haulers Reinforced . | . . Active Scanning Responses . | . . Cargo Convoy Interrupts . | . . Stealth | -11 -10 --------- Run | Yrd Mat Distress Signals 1 | . 1 Communications Jammed . | . . Distress Signals . | . . Times Spotted 26 | . 26 Peak Tracking Total 5 | . 5 Tactical Retreats 1 | . 1 Traps | -11 -10 ------- Run | Yrd Mat Traps Triggered 1 | . 1 Indirectly . | . . Trap Hack Attempts . | . . Triggered . | . . Disarmed . | . . Reprogrammed . | . . Reused . | . . Traps Extracted . | . . Installed . | . . Triggered . | . . Machines | -11 -10 ---------- Run | Yrd Mat Machines Disabled 2 | . 2 Max in Single Turn 1 | . 1 Machines Repaired . | . . Machines Dismantled . | . . Machines Sabotaged . | . . Overloaded Fab Kills . | . . Hacking | -11 -10 --------- Run | Yrd Mat Machines Accessed 1 | . 1 Terminals 1 | . 1 Fabricators . | . . Repair Stations . | . . Recycling Units . | . . Scanalyzers . | . . Garrison Access . | . . Total Hacks 3 | . 3 Successful 1 | . 1 Failed 2 | . 2 Catastrophic . | . . Database Lockouts . | . . Manual 3 | . 3 Terminals 3 | . 3 Fabricators . | . . Repair Stations . | . . Recycling Units . | . . Scanalyzers . | . . Garrison Access . | . . Terminal Hacks 1 | . 1 Unreport Threat 1 | . 1 Fabricator Hacks . | . . Repair Station Hacks . | . . Recycling Unit Hacks . | . . Scanalyzer . | . . Garrison Access Hacks . | . . Unauthorized Hacks . | . . Terminals . | . . Fabricators . | . . Repair Stations . | . . Recycling Units . | . . Scanalyzers . | . . Garrison Access . | . . Data Cores Recovered . | . . Used . | . . Hacking Detections . | . . Full Trace Events . | . . Feedback Events . | . . Feedback Blocked . | . . Robot Schematics Acquired . | . . Robots Built . | . . Authchips . | . . Time . | . . Total Robot Build Rating . | . . Part Schematics Acquired . | . . Parts Built . | . . Authchips . | . . Time . | . . Total Part Build Rating . | . . Parts Repaired . | . . Time . | . . Parts Recycled . | . . Recycled Matter . | . . Retrieved Matter . | . . Retrieved Components . | . . Parts Scanalyzed . | . . Part Schematics Acquired . | . . Parts Damaged . | . . Bothacking | -11 -10 ------------ Run | Yrd Mat Used RIF Installer . | . . Robots Hacked . | . . Non-combat . | . . Combat . | . . Robot Hacks Applied . | . . Relay Couplers Released . | . . Fabnet Peak Effective % . | . . Robots Rewired . | . . Allies Hacked . | . . Hacks Repelled . | . . Allies | -11 -10 -------- Run | Yrd Mat Total Allies . | . . Largest Group . | . . Highest-Rated Group . | . . Highest-Rated Ally . | . . Total Orders . | . . Ally Attacks . | . . Total Damage . | . . Kills . | . . Allies Corrupted . | . . Allies Melted . | . . Intel | -11 -10 ------- Run | Yrd Mat Robot Analysis Total . | . . Derelict Logs Recovered . | . . Drone Launches . | . . Drone Recoveries . | . . Exploration | -11 -10 ------------- Run | Yrd Mat Turns Passed 925 | 63 862 Spaces Moved 300 | 33 267 Core 3 | 3 . Treads 177 | 30 147 Legs 120 | . 120 Wheels . | . . Hover . | . . Flight . | . . Fastest Speed 50 | 50 160 Average Speed 175 | 150 178 Slowest Speed 260 | 160 260 Overloaded Moves . | . . Propulsion Burnouts . | . . Robots Hopped . | . . Cave-ins Triggered . | . . Exploration Rate (%) 23 | 4 42 Regions Visited 1 Branch Regions . Pre-discovered Areas . | . . Known Exits Taken . | . . Unknown Exits Taken 1 | 1 . Scrap Searched . | . . Spaces Dug . | . . Terrain Destroyed 3 | . 3 Melee . | . . Projectile . | . . AOE 3 | . 3 Terrain Rammed . | . . Walls Destroyed . | . . Machines Disabled . | . . Actions | -11 -10 --------- Run | Yrd Mat Total 610 | 45 565 Wait 198 | . 198 Move 299 | 32 267 Hop . | . . Pick Up 8 | 5 3 Fast Attach 9 | 6 3 Attach 6 | . 6 Detach 2 | 1 1 Swap 4 | . 4 Drop 2 | 1 1 Fire 82 | . 82 Melee . | . . Ram . | . . Kick . | . . Crush . | . . Escape Stasis . | . . Rewire . | . . Trap . | . . Miscellaneous . | . . Route ------- -11/Scrapyard -10/Materials (discovered 1 exit: *Min) History --------- Turn | Location | Event 6 | -11/Scrapyard | Discovered new exit (range 16) 64 | -11/Scrapyard | Entered Materials 301 | -10/Materials | Discovered new exit (range 12) 318 | -10/Materials | Build established: Mutant 631 | -10/Materials | Identified exit to Mines 874 | -10/Materials | Core integrity fell below 50% 898 | -10/Materials | Core integrity fell below 20% 926 | -10/Materials | Destroyed by G-34 Mercenary with Small Laser Last Messages --------------- 00876_ G-47 Trooper destroyed. 00877_ U-05 Engineer lays Concrete. 00877_ K-01 Serf collects debris. 00878_ Acquired 44 matter. 00878_ U-05 Engineer lays Concrete. 00880_ K-01 Serf collects debris. 00885_ G-34 Mercenary destroyed. 00887_ K-01 Serf collects debris. 00889_ O-16 Technician destroyed. 00890_ K-01 Serf collects debris. 00896_ System corrupted: Matter fused (-7). 00896_ K-01 Serf collects debris. 00898_ K-01 Serf cleans the Material Compactor. 00905_ Aluminum Leg destroyed. 00911_ Aluminum Leg melted. 00911_ G-34 Mercenary destroyed. 00911_ K-01 Serf collects debris. 00913_ Aluminum Leg destroyed. 00914_ K-01 Serf collects debris. 00923_ K-01 Serf cleans the Material Compactor. Map ----- +----------------------------------------------------+ | ??????????????????????????????????????????? | | ??????????????????????????????????????????? | | ??????????????????????????????????????????? | | ??????????????????????????????????????????? | | ??????????????????????????????????????????? | | ??????????????????????????????????????????? | | ??????????????????????????????????????????? | | ??????????????????????????????????????????? | | ??????????????????????????????????????????? | | ??????????????????????????????????????????? | | ??????????????????????????????????????????? | | ??????????????????????????????????????????? | | ??????????????????????????????????????????? | | ??????????????????????????????????????????? | | ??????????????????????????????????????????? | | ???????????????????????????????? ???????? | | ???????????????????????????????? #??????? | | ???????????????????????????????? #??????? | | ???????????????????????????????# ##?????? | | ?????????# ?????#+##+########## #?????? | | ?????????# # #?????? | | ?????????# + =[ #?????? | | ????????????????# !%=""" #?????? | | ????????????????########=k""""" ??????? | | ???????????????????????#g=""""" #???????? | | ???????????????????????#!@""""" #???????? | | ???????????????????????#g% """ #???????? | | ???????????????????????# #???????? | | ??????? ????????????# #???????? | | ????? ????????????# """ #???????? | | ??? ????????????# """"" #???????? | | ??# #???????????# """"" #???????? | | ??# ############# """"" ###?????? | | ??# k """ "#?????? | | ??# ^ T"#?????? | | ??# %! ! ""#?????? | | ??# ^ ! #?###### """ #####???? | | ??# ! #??????# """" [[#???? | | ??+ #??????# """"" [#???? | | ??? #??????# """" ]]#???? | | ????# #??????# """= ]]#???? | | ????# #??????# * !!#???? | | ????# "" ==! #??????# =% !!#???? | | ##### "Y% ==! #??????# ###### #####???? | | ""= ==! #??????# ?????# #???????? | | #??????# ?????# #???????? | | #??????# ?????# #???????? | | +######## #??????# ??????# #???????? | | #??# #######??????# ??????# #???????? | | #??# #???#####????# ??????#%#??####?? | +----------------------------------------------------+ Best States ------------- Heat Dissipation 25 Energy Generation 10 Energy Capacity 250 Matter Stores 300 Matter Capacity 300 Sight Range 16 Robot Scan Range 14 Terrain Scan Density 10 Evasion (%) 40 Recoil Reduction 2 Item Schematics ----------------- None Robot Schematics ------------------ None Fabricated ------------ Nothing Alien Tech Used ----------------- None Achievements -------------- None Challenges ------------ None Game ------ Seed SurveybotWeaponsCutter Manual? 0 Play Time 00:10:23 Cumulative 17.1 hours Start 2024.11.22 @ 16:05:51 End 2024.11.22 @ 16:15:06 Sessions 1 Manual Loads 0 Difficulty Rogue Special Mode None Game No. 28 Rogue 28 Adventurer 0 Explorer 0 Win Type - Total 0 Types 0/0/0/0/0/0/0/0/0 Lore% 4 Gallery% 17 Achievement% 18 Wizard Run 0 Options --------- Layout 1 ASCII 0 Keyboard 0 Movement Mouse Keybinds 0 Fullscreen 1 Font 16/SmallcapsGlow Map View 27x19 Zoom Use 80% Tactical HUD 1 Map Filters NONE Filters NONE Steam 1 RUN: e0489aaa-d493-446f-838e-6e238e62f592